fUSD/lending_fUSD_20260612
["ID","MTS","AMOUNT","RATE_DAILY","PERIOD"]
[424872846,1781221843000,-150.78,0.0002755,30]
[424872845,1781221843000,-165.51,0.0002755,2]
[424872847,1781221843000,-433.74,0.0002755,30]
[424872844,1781221843000,-390.38,0.0002755,30]
[424872848,1781221843000,-160.95,0.0002755,2]
[424872851,1781221843000,-171.20417352,0.00027597,2]
[424872857,1781221843000,-150.78,0.00027711,7]
[424872837,1781221843000,-4274.5,0.00027397,10]
[424872881,1781221843000,-286.34,0.00028044,30]
[424872826,1781221843000,-500.0,0.0002736,2]
[424872880,1781221843000,-207.65,0.00028044,30]
[424872910,1781221843000,-358.66,0.00028826,2]
[424872914,1781221843000,-301.32,0.00028826,2]
[424872912,1781221843000,-2602.15,0.00028826,2]
[424872916,1781221843000,-3000.0,0.00028826,2]
[424872918,1781221843000,-475.0,0.000289,2]
[424872926,1781221843000,-155.58,0.00029,2]
[424872917,1781221843000,-245.17,0.00028826,2]
[424872919,1781221843000,-301.15,0.00028971,30]
[424872925,1781221843000,-215.2,0.00029,2]
[424872924,1781221843000,-155.57,0.00029,2]
[424872920,1781221843000,-167.46807175,0.00028971,2]
[424872913,1781221843000,-516.47,0.00028826,2]
[424872923,1781221843000,-650.54,0.00029,2]
[424872928,1781221843000,-158.55225597,0.00029,2]
[424872927,1781221843000,-500.0,0.00029,2]
[424872929,1781221843000,-156.69078566,0.00029,2]
[424872930,1781221843000,-500.0,0.00029,2]
[424872934,1781221843000,-500.0,0.00029,2]
[424872931,1781221843000,-291.7,0.00029,2]
[424872933,1781221843000,-500.0,0.00029,2]
[424872932,1781221843000,-1084.23,0.00029,2]
[424872936,1781221843000,-344.31,0.00029,2]
[424872935,1781221843000,-291.7,0.00029,2]
[424872891,1781221843000,-433.74,0.00028194,7]
[424872921,1781221843000,-155.57,0.00029,2]
[424872909,1781221843000,-1561.29,0.00028826,2]
[424872922,1781221843000,-200.88,0.00029,2]
[424872908,1781221843000,-164.27,0.000287,7]
[424872883,1781221843000,-165.54,0.0002813,2]
[424872907,1781221843000,-189.92424285,0.00028636,7]
[424872885,1781221843000,-302.44332909,0.00028143,2]
[424872888,1781221843000,-540.65875253,0.00028181,16]
[424872886,1781221843000,-160.76,0.00028171,30]
[424872887,1781221843000,-160.68,0.00028171,30]
[424872882,1781221843000,-160.95,0.00028047,2]
[424872890,1781221843000,-150.78,0.00028194,7]
[424872889,1781221843000,-390.38,0.00028194,7]
[424872892,1781221843000,-207.65,0.00028203,7]
[424872896,1781221843000,-310.66425671,0.00028621,7]
[424872894,1781221843000,-359.3,0.00028267,2]
[424872893,1781221843000,-286.34,0.00028203,7]
[424872884,1781221843000,-161.01,0.0002813,7]
[424872900,1781221843000,-308.5270665,0.00028621,7]
[424872895,1781221843000,-504.0,0.00028333,11]
[424872906,1781221843000,-404.67950311,0.00028636,2]
[424872915,1781221843000,-3000.0,0.00028826,2]
[424872905,1781221843000,-314.31039341,0.00028636,7]
[424872901,1781221843000,-327.69947327,0.00028627,7]
[424872904,1781221843000,-411.98602605,0.00028636,7]
[424872897,1781221843000,-388.03370993,0.00028621,7]
[424872903,1781221843000,-163.46200504,0.00028636,7]
[424872899,1781221843000,-303.50386424,0.00028621,7]
[424872898,1781221843000,-310.8019377,0.00028621,7]
[424872902,1781221843000,-350.27765024,0.00028636,7]
[424872975,1781221844000,-181.66088399,0.00029482,7]
[424872962,1781221844000,-466.20290656,0.00029482,7]
[424872969,1781221844000,-211.25981778,0.00029482,7]
[424872963,1781221844000,-455.25579637,0.00029482,7]
[424872970,1781221844000,-208.97055616,0.00029482,7]
[424872971,1781221844000,-240.86109358,0.00029482,7]
[424872972,1781221844000,-218.2486721,0.00029482,7]
[424872960,1781221844000,-582.05056489,0.00029482,7]
[424872974,1781221844000,-264.49333708,0.00029482,7]
[424872976,1781221844000,-266.66322147,0.00029482,7]
[424872979,1781221844000,-491.54920991,0.00029489,7]
[424872992,1781221844000,-593.37824844,0.000299,2]
[424872980,1781221844000,-207.178928,0.00029489,5]
[424872977,1781221844000,-385.25467791,0.00029489,7]
[424872978,1781221844000,-390.95222027,0.00029489,7]
[424872981,1781221844000,-525.41647536,0.00029497,7]
[424872983,1781221844000,-566.8807194,0.00029497,7]
[424872991,1781221844000,-593.37824847,0.000299,2]
[424872984,1781221844000,-326.92401008,0.00029497,7]
[424872982,1781221844000,-242.81820882,0.00029497,7]
[424872985,1781221844000,-617.97903908,0.00029497,7]
[424872987,1781221844000,-379.8484857,0.00029497,7]
[424872961,1781221844000,-190.28157863,0.00029482,7]
[424872973,1781221844000,-208.75109454,0.00029482,7]
[424872968,1781221844000,-199.02709662,0.00029482,7]
[424872937,1781221844000,-500.0,0.00029,2]
[424872967,1781221844000,-462.79059975,0.00029482,7]
[424872988,1781221844000,-607.01925466,0.00029497,2]
[424872938,1781221844000,-291.7,0.00029,2]
[424872939,1781221844000,-2602.15,0.00029,2]
[424872940,1781221844000,-6000.0,0.00029069,5]
[424872941,1781221844000,-5609.0,0.00029069,5]
[424872945,1781221844000,-155.0,0.00029145,30]
[424872942,1781221844000,-1089.35,0.000291,4]
[424872943,1781221844000,-296.0,0.00029145,30]
[424872947,1781221844000,-160.0,0.00029145,30]
[424872944,1781221844000,-151.0,0.00029145,30]
[424872946,1781221844000,-157.0,0.00029145,30]
[424872948,1781221844000,-170.0,0.00029145,30]
[424872951,1781221844000,-157.0,0.00029145,30]
[424872950,1781221844000,-291.0,0.00029145,30]
[424872949,1781221844000,-518.0,0.00029145,30]
[424872952,1781221844000,-248.0,0.00029145,30]
[424872953,1781221844000,-192.0,0.00029145,30]
[424872954,1781221844000,-158.0,0.00029145,30]
[424872956,1781221844000,-150.0,0.00029372,2]
[424872959,1781221844000,-465.99638506,0.00029482,7]
[424872958,1781221844000,-188.29042251,0.00029482,7]
[424872957,1781221844000,-195.86188387,0.00029482,7]
[424872955,1781221844000,-504.0,0.00029367,12]
[424872964,1781221844000,-198.36476642,0.00029482,7]
[424872966,1781221844000,-151.4770914,0.00029482,7]
[424872965,1781221844000,-247.42429171,0.00029482,7]
[424872989,1781221844000,-1000.0,0.000295,2]
[424872994,1781221844000,-593.37824844,0.000299,2]
[424872990,1781221844000,-302.44332909,0.00029721,2]
[424873025,1781221844000,-417.94111231,0.00030056,7]
[424873021,1781221844000,-607.00772849,0.00030056,7]
[424873024,1781221844000,-422.51963555,0.00030056,7]
[424873017,1781221844000,-621.32851341,0.00030056,7]
[424873026,1781221844000,-417.50218907,0.00030056,7]
[424873030,1781221844000,-292.74392776,0.00030063,7]
[424873033,1781221844000,-424.56355346,0.00030063,7]
[424873031,1781221844000,-201.15418835,0.00030063,7]
[424873035,1781221844000,-354.98947477,0.00030063,7]
[424873028,1781221844000,-396.72953284,0.00030056,7]
[424873032,1781221844000,-253.32091426,0.00030063,7]
[424873018,1781221844000,-776.06741985,0.00030056,7]
[424873029,1781221844000,-577.88201687,0.00030063,7]
[424873036,1781221844000,-271.75815348,0.00030063,7]
[424873027,1781221844000,-528.98667417,0.00030056,7]
[424873038,1781221844000,-425.24853701,0.00030063,7]
[424873037,1781221844000,-408.95943969,0.00030063,7]
[424873039,1781221844000,-157.05731674,0.00030063,7]
[424873045,1781221844000,-427.82696669,0.00030063,7]
[424873040,1781221844000,-221.93409433,0.00030063,7]
[424873042,1781221844000,-703.84459651,0.00030063,7]
[424873044,1781221844000,-194.26899729,0.00030063,7]
[424872986,1781221844000,-471.46559012,0.00029497,7]
[424873041,1781221844000,-678.31932054,0.00030063,7]
[424873034,1781221844000,-321.27317265,0.00030063,7]
[424873023,1781221844000,-302.95418279,0.00030056,7]
[424873043,1781221844000,-371.43930954,0.00030063,7]
[424873019,1781221844000,-380.56315726,0.00030056,7]
[424873022,1781221844000,-494.84858342,0.00030056,7]
[424872993,1781221844000,-593.37824844,0.000299,2]
[424872997,1781221844000,-593.37824844,0.000299,2]
[424872996,1781221844000,-593.37824844,0.000299,2]
[424873002,1781221844000,-593.37824844,0.000299,2]
[424872998,1781221844000,-593.37824844,0.000299,2]
[424872995,1781221844000,-593.37824844,0.000299,2]
[424872999,1781221844000,-593.37824844,0.000299,2]
[424873001,1781221844000,-593.37824844,0.000299,2]
[424873003,1781221844000,-593.37824844,0.000299,2]
[424873000,1781221844000,-593.37824844,0.000299,2]
[424873006,1781221844000,-593.37824844,0.000299,2]
[424873004,1781221844000,-593.37824844,0.000299,2]
[424873008,1781221844000,-593.37824844,0.000299,2]
[424873010,1781221844000,-593.37824844,0.000299,2]
[424873012,1781221844000,-1000.0,0.0003,2]
[424873011,1781221844000,-1049.90766312,0.00029966,7]
[424873009,1781221844000,-593.37824844,0.000299,2]
[424873007,1781221844000,-593.37824844,0.000299,2]
[424873013,1781221844000,-1013.1032934,0.0003,2]
[424873014,1781221844000,-200.0,0.0003,2]
[424873015,1781221844000,-316.0841448,0.0003,120]
[424873016,1781221844000,-391.72376773,0.00030056,7]
[424873020,1781221844000,-621.60387541,0.00030056,7]
[424873005,1781221844000,-593.37824844,0.000299,2]
[424873083,1781221845000,-518.0,0.00030145,30]
[424873084,1781221845000,-291.0,0.00030145,30]
[424873078,1781221845000,-151.0,0.00030145,30]
[424873064,1781221845000,-152.3706,0.00030137,2]
[424873079,1781221845000,-155.0,0.00030145,30]
[424873074,1781221845000,-700.0,0.00030141,30]
[424873076,1781221845000,-257.0,0.00030141,120]
[424873073,1781221845000,-700.0,0.00030141,30]
[424873075,1781221845000,-464.0,0.00030141,30]
[424873081,1781221845000,-160.0,0.00030145,30]
[424873087,1781221845000,-192.0,0.00030145,30]
[424873082,1781221845000,-170.0,0.00030145,30]
[424873077,1781221845000,-296.0,0.00030145,30]
[424873085,1781221845000,-157.0,0.00030145,30]
[424873097,1781221845000,-164.27,0.000306,7]
[424873086,1781221845000,-248.0,0.00030145,30]
[424873098,1781221845000,-776.66064176,0.00030631,7]
[424873090,1781221845000,-7683.66965495,0.0003021,7]
[424873088,1781221845000,-158.0,0.00030145,30]
[424873089,1781221845000,-18577.38633284,0.0003021,7]
[424873067,1781221845000,-4055.67,0.00030141,120]
[424873080,1781221845000,-157.0,0.00030145,30]
[424873071,1781221845000,-700.0,0.00030141,30]
[424873054,1781221845000,-398.05419325,0.00030072,7]
[424873063,1781221845000,-320.0,0.00030137,15]
[424873047,1781221845000,-650.57556347,0.00030063,7]
[424873046,1781221845000,-179.09813948,0.00030063,7]
[424873050,1781221845000,-655.39894654,0.00030063,7]
[424873051,1781221845000,-414.35785599,0.00030063,5]
[424873048,1781221845000,-344.97576152,0.00030063,7]
[424873096,1781221845000,-152.0,0.00030507,7]
[424873059,1781221845000,-569.77272854,0.00030072,7]
[424873057,1781221845000,-823.9720521,0.00030072,7]
[424873055,1781221845000,-755.8409592,0.00030072,7]
[424873049,1781221845000,-330.70243617,0.00030063,7]
[424873070,1781221845000,-700.0,0.00030141,30]
[424873056,1781221845000,-490.38601512,0.00030072,7]
[424873052,1781221845000,-410.81546729,0.00030072,7]
[424873058,1781221845000,-628.62078682,0.00030072,7]
[424873060,1781221845000,-809.35900621,0.00030072,2]
[424873062,1781221845000,-188.72185558,0.00030137,40]
[424873072,1781221845000,-700.0,0.00030141,30]
[424873061,1781221845000,-276.36,0.00030137,5]
[424873065,1781221845000,-236.78,0.00030137,30]
[424873066,1781221845000,-500.0,0.00030141,120]
[424873068,1781221845000,-150.0,0.00030141,120]
[424873069,1781221845000,-193.0,0.00030141,120]
[424873053,1781221845000,-485.63641763,0.00030072,7]
[424873093,1781221845000,-504.0,0.000304,13]
[424873141,1781221845000,-155.73201421,0.00031,2]
[424873092,1781221845000,-359.3,0.00030239,2]
[424873122,1781221845000,-2000.0,0.00030788,7]
[424873127,1781221845000,-779.0,0.00030788,7]
[424873126,1781221845000,-2000.0,0.00030788,7]
[424873128,1781221845000,-650.0,0.00030788,7]
[424873123,1781221845000,-2000.0,0.00030788,7]
[424873124,1781221845000,-2000.0,0.00030788,7]
[424873125,1781221845000,-2000.0,0.00030788,7]
[424873129,1781221845000,-650.0,0.00030788,7]
[424873134,1781221845000,-152.0,0.00030788,7]
[424873133,1781221845000,-157.0,0.00030788,7]
[424873131,1781221845000,-650.0,0.00030788,7]
[424873137,1781221845000,-5000.0,0.00030826,120]
[424873135,1781221845000,-320.0,0.00030795,17]
[424873142,1781221845000,-174.0,0.00031002,30]
[424873140,1781221845000,-150.0,0.00030841,2]
[424873139,1781221845000,-856.0,0.00030826,120]
[424873144,1781221845000,-1540.09432815,0.00031065,2]
[424873143,1781221845000,-150.0,0.00031002,30]
[424873146,1781221845000,-1190.69720668,0.00031096,2]
[424873145,1781221845000,-278.58,0.00031096,5]
[424873147,1781221845000,-5335.48567388,0.00031099,2]
[424873094,1781221845000,-150.0,0.00030425,30]
[424873136,1781221845000,-4055.67,0.00030826,120]
[424873120,1781221845000,-152.0,0.00030727,7]
[424873138,1781221845000,-1182.0,0.00030826,120]
[424873118,1781221845000,-416.0,0.00030714,30]
[424873091,1781221845000,-561.035936,0.00030216,7]
[424873099,1781221845000,-970.08427482,0.00030631,7]
[424873102,1781221845000,-908.6466504,0.00030631,7]
[424873101,1781221845000,-758.75966061,0.00030631,7]
[424873108,1781221845000,-785.77598353,0.00030646,7]
[424873107,1781221845000,-875.6941256,0.00030646,7]
[424873105,1781221845000,-150.0,0.00030633,2]
[424873104,1781221845000,-6743.0,0.00030633,10]
[424873095,1781221845000,-320.0,0.00030469,16]
[424873106,1781221845000,-819.24868318,0.00030637,7]
[424873121,1781221845000,-152.0,0.00030727,7]
[424873103,1781221845000,-771.31766625,0.00030631,7]
[424873119,1781221845000,-150.0,0.00030714,30]
[424873109,1781221845000,-152.0,0.00030665,7]
[424873111,1781221845000,-152.0,0.00030665,7]
[424873110,1781221845000,-152.0,0.00030665,7]
[424873112,1781221845000,-386.0,0.00030704,2]
[424873116,1781221845000,-650.0,0.00030714,30]
[424873114,1781221845000,-650.0,0.00030714,30]
[424873115,1781221845000,-650.0,0.00030714,30]
[424873113,1781221845000,-650.0,0.00030714,30]
[424873117,1781221845000,-650.0,0.00030714,30]
[424873100,1781221845000,-777.00484426,0.00030631,7]
[424873150,1781221846000,-409.76624878,0.00031099,2]
[424873151,1781221846000,-112868.15998554,0.00031099,2]
[424873154,1781221846000,-193.0,0.00031141,30]
[424873153,1781221846000,-320.0,0.00031113,18]
[424873152,1781221846000,-279.9934349,0.00031099,2]
[424873185,1781221847000,-932.40581311,0.00031492,7]
[424873187,1781221847000,-1090.37598048,0.00031492,7]
[424873186,1781221847000,-910.51159273,0.00031492,7]
[424873189,1781221847000,-236.78,0.00031507,30]
[424873188,1781221847000,-925.58119949,0.00031492,7]
[424873192,1781221847000,-942.93118023,0.00031508,7]
[424873190,1781221847000,-168.57,0.00031507,30]
[424873191,1781221847000,-1050.83295072,0.00031508,7]
[424873193,1781221847000,-167.46807175,0.00031578,2]
[424873194,1781221847000,-976.0,0.00031596,30]
[424873198,1781221847000,-10115.0,0.00031858,10]
[424873196,1781221847000,-320.0,0.00031728,21]
[424873204,1781221847000,-151.0,0.00031931,30]
[424873201,1781221847000,-151.0,0.00031931,30]
[424873205,1781221847000,-151.0,0.00031931,30]
[424873200,1781221847000,-151.0,0.00031931,30]
[424873197,1781221847000,-4055.67,0.0003173,120]
[424873195,1781221847000,-188.72185558,0.00031644,40]
[424873203,1781221847000,-151.0,0.00031931,30]
[424873202,1781221847000,-151.0,0.00031931,30]
[424873206,1781221847000,-151.0,0.00031931,30]
[424873207,1781221847000,-151.0,0.00031931,7]
[424873209,1781221847000,-1000.0,0.00031931,2]
[424873184,1781221847000,-931.99277012,0.00031492,7]
[424873208,1781221847000,-1000.0,0.00031931,2]
[424873199,1781221847000,-193.0,0.00031858,3]
[424873183,1781221847000,-1015.19820232,0.00031492,7]
[424873158,1781221847000,-151.0,0.00031145,30]
[424873181,1781221847000,-320.0,0.00031424,19]
[424873155,1781221847000,-262.0,0.00031141,30]
[424873156,1781221847000,-395.0,0.00031141,30]
[424873157,1781221847000,-296.0,0.00031145,30]
[424873160,1781221847000,-157.0,0.00031145,30]
[424873159,1781221847000,-155.0,0.00031145,30]
[424873170,1781221847000,-194.0,0.000312,7]
[424873162,1781221847000,-170.0,0.00031145,30]
[424873166,1781221847000,-248.0,0.00031145,30]
[424873165,1781221847000,-157.0,0.00031145,30]
[424873164,1781221847000,-291.0,0.00031145,30]
[424873163,1781221847000,-518.0,0.00031145,30]
[424873161,1781221847000,-160.0,0.00031145,30]
[424873169,1781221847000,-443.09253187,0.00031188,6]
[424873168,1781221847000,-158.0,0.00031145,30]
[424873167,1781221847000,-192.0,0.00031145,30]
[424873171,1781221847000,-1000.0,0.000312,7]
[424873173,1781221847000,-302.44332909,0.00031299,2]
[424873177,1781221847000,-198.30946013,0.0003132,2]
[424873176,1781221847000,-1561.29,0.0003132,2]
[424873172,1781221847000,-150.312561,0.00031256,2]
[424873174,1781221847000,-390.32,0.0003132,2]
[424873178,1781221847000,-1880.05833063,0.00031325,2]
[424873175,1781221847000,-650.54,0.0003132,2]
[424873182,1781221847000,-504.0,0.00031433,14]
[424873179,1781221847000,-5565.214,0.00031399,29]
[424873180,1781221847000,-358.42,0.00031399,29]
[424873212,1781221847000,-1000.0,0.00031931,2]
[424873210,1781221847000,-1000.0,0.00031931,2]
[424873215,1781221847000,-710.36,0.00031937,120]
[424873244,1781221847000,-1314.640837,0.00031938,7]
[424873242,1781221847000,-425.903206,0.00031938,7]
[424873246,1781221847000,-1314.640837,0.00031938,7]
[424873249,1781221847000,-185.87068677,0.00032,120]
[424873248,1781221847000,-170.1853494,0.00032,120]
[424873247,1781221847000,-188.4317516,0.00032,120]
[424873251,1781221847000,-186.27637767,0.00032,120]
[424873250,1781221847000,-212.97669288,0.00032,120]
[424873253,1781221847000,-160.76412738,0.00032,120]
[424873263,1781221847000,-655.64590049,0.00032,120]
[424873252,1781221847000,-187.69831663,0.00032,120]
[424873254,1781221847000,-174.25490651,0.00032,120]
[424873245,1781221847000,-1314.640837,0.00031938,7]
[424873260,1781221847000,-172.54293024,0.00032,120]
[424873256,1781221847000,-558.07665846,0.00032,120]
[424873257,1781221847000,-190.70801845,0.00032,120]
[424873258,1781221847000,-503.45048264,0.00032,120]
[424873262,1781221847000,-786.84601873,0.00032,120]
[424873259,1781221847000,-178.25990567,0.00032,120]
[424873264,1781221847000,-525.45218996,0.00032,120]
[424873266,1781221847000,-205.39761631,0.00032,120]
[424873269,1781221847000,-195.495558,0.00032,120]
[424873268,1781221847000,-186.63959282,0.00032,120]
[424873267,1781221847000,-199.36769843,0.00032,120]
[424873265,1781221847000,-185.24154344,0.00032,120]
[424873211,1781221847000,-1000.0,0.00031931,2]
[424873261,1781221847000,-168.3978096,0.00032,120]
[424873243,1781221847000,-1314.640837,0.00031938,7]
[424873255,1781221847000,-184.54162468,0.00032,120]
[424873237,1781221847000,-1161.489255,0.00031938,7]
[424873241,1781221847000,-425.903206,0.00031938,7]
[424873214,1781221847000,-710.36,0.00031937,120]
[424873213,1781221847000,-1860.86,0.00031931,2]
[424873219,1781221847000,-551.05193,0.00031937,7]
[424873217,1781221847000,-710.36,0.00031937,120]
[424873221,1781221847000,-151.0,0.00031937,7]
[424873222,1781221847000,-551.05193,0.00031937,7]
[424873228,1781221847000,-1000.0,0.00031937,2]
[424873220,1781221847000,-551.05193,0.00031937,7]
[424873223,1781221847000,-176.165138,0.00031937,7]
[424873226,1781221847000,-1000.0,0.00031937,2]
[424873224,1781221847000,-551.05193,0.00031937,7]
[424873227,1781221847000,-1000.0,0.00031937,2]
[424873216,1781221847000,-710.36,0.00031937,120]
[424873225,1781221847000,-1000.0,0.00031937,2]
[424873218,1781221847000,-710.5242073,0.00031937,120]
[424873235,1781221847000,-1161.489255,0.00031938,7]
[424873231,1781221847000,-1000.0,0.00031937,2]
[424873233,1781221847000,-1000.0,0.00031937,2]
[424873232,1781221847000,-1000.0,0.00031937,2]
[424873234,1781221847000,-1291.29,0.00031937,2]
[424873236,1781221847000,-1161.489255,0.00031938,7]
[424873240,1781221847000,-425.903206,0.00031938,7]
[424873239,1781221847000,-425.903206,0.00031938,7]
[424873229,1781221847000,-1000.0,0.00031937,2]
[424873238,1781221847000,-1161.489255,0.00031938,7]
[424873230,1781221847000,-1000.0,0.00031937,2]
[424873308,1781221848000,-82810.49872525,0.00032232,30]
[424873309,1781221848000,-151.0,0.00032232,7]
[424873306,1781221848000,-100000.0,0.00032232,90]
[424873305,1781221848000,-100000.0,0.00032232,120]
[424873303,1781221848000,-300.0,0.00032231,10]
[424873301,1781221848000,-2076.7,0.00032231,60]
[424873307,1781221848000,-100000.0,0.00032232,60]
[424873304,1781221848000,-666.0,0.00032231,10]
[424873310,1781221848000,-151.0,0.00032232,7]
[424873300,1781221848000,-540.24083741,0.00032231,120]
[424873312,1781221848000,-284.0,0.00032232,120]
[424873302,1781221848000,-666.0,0.00032231,10]
[424873311,1781221848000,-247.147394,0.00032232,7]
[424873318,1781221848000,-320.0,0.00032602,25]
[424873313,1781221848000,-320.0,0.00032317,23]
[424873315,1781221848000,-504.0,0.00032467,15]
[424873316,1781221848000,-3915.82,0.00032497,120]
[424873317,1781221848000,-337.75,0.00032534,2]
[424873319,1781221848000,-300.0,0.00032707,10]
[424873321,1781221848000,-18577.38633284,0.00032708,7]
[424873320,1781221848000,-666.0,0.00032707,10]
[424873323,1781221848000,-1161.489255,0.00032708,7]
[424873324,1781221848000,-1161.489255,0.00032708,7]
[424873333,1781221848000,-1314.640837,0.00032708,7]
[424873322,1781221848000,-7683.66965495,0.00032708,7]
[424873299,1781221848000,-500.0,0.00032231,120]
[424873314,1781221848000,-150.0,0.00032383,2]
[424873294,1781221848000,-500.0,0.00032231,120]
[424873330,1781221848000,-425.903206,0.00032708,7]
[424873296,1781221848000,-500.0,0.00032231,120]
[424873270,1781221848000,-1180.26902809,0.00032,120]
[424873273,1781221848000,-164.27,0.000321,7]
[424873271,1781221848000,-320.0,0.00032026,22]
[424873272,1781221848000,-279.87,0.00032055,5]
[424873274,1781221848000,-296.0,0.00032145,30]
[424873275,1781221848000,-151.0,0.00032145,30]
[424873280,1781221848000,-518.0,0.00032145,30]
[424873276,1781221848000,-155.0,0.00032145,30]
[424873277,1781221848000,-157.0,0.00032145,30]
[424873283,1781221848000,-248.0,0.00032145,30]
[424873281,1781221848000,-291.0,0.00032145,30]
[424873279,1781221848000,-170.0,0.00032145,30]
[424873297,1781221848000,-500.0,0.00032231,120]
[424873278,1781221848000,-160.0,0.00032145,30]
[424873285,1781221848000,-158.0,0.00032145,30]
[424873284,1781221848000,-192.0,0.00032145,30]
[424873286,1781221848000,-359.3,0.0003221,5]
[424873288,1781221848000,-500.0,0.00032231,120]
[424873287,1781221848000,-161.985143,0.00032229,7]
[424873298,1781221848000,-500.0,0.00032231,120]
[424873289,1781221848000,-500.0,0.00032231,120]
[424873290,1781221848000,-500.0,0.00032231,120]
[424873291,1781221848000,-500.0,0.00032231,120]
[424873292,1781221848000,-500.0,0.00032231,120]
[424873295,1781221848000,-500.0,0.00032231,120]
[424873293,1781221848000,-500.0,0.00032231,120]
[424873282,1781221848000,-157.0,0.00032145,30]
[424873325,1781221848000,-1161.489255,0.00032708,7]
[424873370,1781221848000,-151.0,0.00032877,7]
[424873332,1781221848000,-1314.640837,0.00032708,7]
[424873362,1781221848000,-157.611457,0.00032877,7]
[424873386,1781221848000,-1570.0,0.00032877,30]
[424873371,1781221848000,-151.0,0.00032877,7]
[424873363,1781221848000,-157.611457,0.00032877,7]
[424873360,1781221848000,-151.0,0.00032877,7]
[424873369,1781221848000,-157.611457,0.00032877,7]
[424873364,1781221848000,-157.611457,0.00032877,7]
[424873366,1781221848000,-157.611457,0.00032877,7]
[424873368,1781221848000,-157.611457,0.00032877,7]
[424873367,1781221848000,-157.611457,0.00032877,7]
[424873365,1781221848000,-157.611457,0.00032877,7]
[424873374,1781221848000,-151.0,0.00032877,7]
[424873361,1781221848000,-151.0,0.00032877,7]
[424873375,1781221848000,-151.0,0.00032877,7]
[424873376,1781221848000,-151.0,0.00032877,7]
[424873380,1781221848000,-200.980438,0.00032877,7]
[424873372,1781221848000,-151.0,0.00032877,7]
[424873379,1781221848000,-200.980438,0.00032877,7]
[424873377,1781221848000,-184.279738,0.00032877,7]
[424873381,1781221848000,-200.980438,0.00032877,7]
[424873382,1781221848000,-264.999239,0.00032877,7]
[424873378,1781221848000,-200.980438,0.00032877,7]
[424873384,1781221848000,-200.980438,0.00032877,7]
[424873385,1781221848000,-200.980438,0.00032877,7]
[424873387,1781221848000,-897.17095,0.00032877,120]
[424873328,1781221848000,-425.903206,0.00032708,7]
[424873373,1781221848000,-151.0,0.00032877,7]
[424873359,1781221848000,-151.0,0.00032877,7]
[424873383,1781221848000,-264.999239,0.00032877,7]
[424873358,1781221848000,-151.0,0.00032877,7]
[424873329,1781221848000,-425.903206,0.00032708,7]
[424873327,1781221848000,-425.903206,0.00032708,7]
[424873326,1781221848000,-1161.489255,0.00032708,7]
[424873331,1781221848000,-1314.640837,0.00032708,7]
[424873335,1781221848000,-551.05193,0.00032708,7]
[424873345,1781221848000,-151.0,0.00032877,7]
[424873337,1781221848000,-151.0,0.00032708,7]
[424873357,1781221848000,-151.0,0.00032877,7]
[424873346,1781221848000,-151.0,0.00032877,7]
[424873336,1781221848000,-551.05193,0.00032708,7]
[424873338,1781221848000,-551.05193,0.00032708,7]
[424873342,1781221848000,-1087.80678197,0.00032784,7]
[424873341,1781221848000,-1087.32489847,0.00032784,7]
[424873334,1781221848000,-1314.640837,0.00032708,7]
[424873339,1781221848000,-551.05193,0.00032708,7]
[424873356,1781221848000,-151.0,0.00032877,7]